bitfinex/quotes_SOLUSD_20230101
["timestamp","ask_amount","ask_price","bid_price","bid_amount"]
[1672562483617,77.03,9.7469,9.7363,307.0]
[1672562483827,20.0,9.7468,9.7363,307.0]
[1672562484054,77.03,9.7467,9.7363,307.0]
[1672562484253,20.0,9.7466,9.7363,307.0]
[1672562484471,77.03,9.7465,9.7365,307.0]
[1672562484805,20.0,9.7464,9.7365,307.0]
[1672562485000,77.04,9.7463,9.7366,40.0]
[1672562485215,20.0,9.7462,9.7367,307.0]
[1672562485407,20.0,9.7462,9.7369,307.0]
[1672562485611,20.0,9.7462,9.7372,40.0]
[1672562485827,22.8388,9.7461,9.7374,307.0]
[1672562486053,20.0,9.746,9.7377,40.0]
[1672562486368,20.0,9.746,9.738,40.0]
[1672562486576,20.0,9.746,9.7383,40.0]
[1672562486893,20.0,9.746,9.7386,40.0]
[1672562487096,20.0,9.746,9.7389,40.0]
[1672562487323,20.0,9.746,9.7392,40.0]
[1672562487623,20.0,9.746,9.7395,40.0]
[1672562489396,20.0,9.746,9.7398,40.0]
[1672562491606,20.0,9.746,9.7398,347.0]
[1672562492782,20.0,9.746,9.7398,40.0]
[1672562493498,109.8613,9.7475,9.7398,40.0]
[1672562493711,109.8613,9.7475,9.74,40.0]
[1672562493919,109.8613,9.7475,9.7403,40.0]
[1672562494132,76.99,9.7527,9.7405,307.0]
[1672562494342,20.0,9.7526,9.7407,307.0]
[1672562494562,76.99,9.7525,9.741,40.0]
[1672562494763,20.0,9.7524,9.7412,307.0]
[1672562495092,76.99,9.7523,9.7415,40.0]
[1672562495286,20.0,9.7522,9.7417,307.0]
[1672562495502,76.99,9.7521,9.7419,307.0]
[1672562495712,76.99,9.7521,9.7422,40.0]
[1672562495928,76.99,9.7521,9.7424,307.0]
[1672562496134,24.1176,9.752,9.7424,307.0]
[1672562496347,76.99,9.7519,9.7424,307.0]
[1672562496759,24.1176,9.7518,9.7427,40.0]
[1672562496970,76.99,9.7517,9.7427,40.0]
[1672562497400,76.99,9.7517,9.7428,23.0277]
[1672562498023,76.99,9.7517,9.743,40.0]
[1672562498875,76.99,9.7517,9.7431,24.1703]
[1672562499500,76.99,9.7517,9.7432,24.1703]
[1672562499918,76.99,9.7517,9.7433,24.1703]
[1672562500451,76.99,9.7517,9.7435,40.0]
[1672562501180,76.99,9.7517,9.7436,24.1703]
[1672562501588,76.99,9.7517,9.7437,23.4979]
[1672562502235,76.99,9.7517,9.7438,23.4979]
[1672562502878,76.99,9.7517,9.7439,23.4979]
[1672562503507,76.99,9.7517,9.744,23.4979]
[1672562503914,76.99,9.7517,9.7441,347.0]
[1672562504883,76.99,9.7517,9.7441,370.4176]
[1672562505191,152.42775834,9.7517,9.7441,370.4176]
[1672562505406,75.43775834,9.7516,9.7441,370.4176]
[1672562505613,77.0,9.7515,9.7441,370.4176]
[1672562507405,75.43775834,9.7511,9.7441,370.4176]
[1672562509278,75.43775834,9.7513,9.7441,370.4176]
[1672562510005,75.43775834,9.7512,9.7441,370.4176]
[1672562510216,75.43775834,9.7513,9.7441,370.4176]
[1672562511394,75.43775834,9.7512,9.7441,370.4176]
[1672562512341,75.43775834,9.7513,9.7441,370.4176]
[1672562513479,75.43775834,9.7512,9.7441,370.4176]
[1672562516444,75.43775834,9.7507,9.7441,370.4176]
[1672562517480,75.43775834,9.7506,9.7441,370.4176]
[1672562518324,75.43775834,9.7496,9.7441,370.4176]
[1672562519607,75.43775834,9.7495,9.7441,370.4176]
[1672562520336,75.43775834,9.7496,9.7441,23.4176]
[1672562520550,75.43775834,9.7495,9.7441,23.4176]
[1672562524006,77.01,9.7494,9.7441,23.4176]
[1672562524206,75.43775834,9.7495,9.7441,23.4176]
[1672562524416,137.01,9.7494,9.7441,23.4176]
[1672562524626,152.75479248,9.7455,9.7441,23.4176]
[1672562524833,152.75479248,9.7453,9.7361,23.2605]
[1672562525055,152.75479248,9.7453,9.7361,135.8474]
[1672562525056,75.95886972,9.7434,9.7361,135.8474]
[1672562525382,75.95886972,9.7434,9.7361,112.5869]
[1672562525577,20.0,9.7433,9.7362,384.12]
[1672562525791,20.0,9.7433,9.7362,307.0]
[1672562526540,43.5038,9.7443,9.7362,307.0]
[1672562526726,77.05,9.7442,9.7362,307.0]
[1672562526936,20.0,9.7441,9.7362,307.0]
[1672562527789,20.0,9.7441,9.7363,40.0]
[1672562527992,20.0,9.7441,9.7365,307.0]
[1672562528202,20.0,9.7442,9.7367,307.0]
[1672562528408,20.0,9.7442,9.737,40.0]
[1672562531796,20.0,9.7442,9.7373,40.0]
[1672562532007,20.0,9.7442,9.7374,307.0]
[1672562532323,20.0,9.7442,9.7376,347.0]
[1672562532555,20.0,9.7442,9.7379,40.0]
[1672562532752,20.0,9.7442,9.7381,40.0]
[1672562533816,20.0,9.7442,9.7381,347.0]
[1672562534344,20.0,9.7442,9.7384,40.0]
[1672562534553,20.0,9.7442,9.7386,347.0]
[1672562534741,20.0,9.7442,9.7389,40.0]
[1672562534952,20.0,9.7442,9.7391,307.0]
[1672562535176,20.0,9.7442,9.7392,40.0]
[1672562537475,23.5038,9.7443,9.7392,40.0]
[1672562537689,23.5038,9.7443,9.7395,40.0]
[1672562537913,23.5038,9.7443,9.7398,40.0]
[1672562538107,77.0,9.7515,9.74,307.0]
[1672562538317,77.0,9.7515,9.7399,77.09]
[1672562538318,77.0,9.7515,9.7402,307.0]
[1672562538533,76.99,9.7516,9.7405,40.0]
[1672562538755,76.99,9.7516,9.7408,40.0]
[1672562538946,76.99,9.7516,9.741,307.0]
[1672562539166,76.99,9.7516,9.7412,307.0]
[1672562539382,76.99,9.7516,9.7415,40.0]
[1672562539578,76.99,9.7516,9.7418,40.0]
[1672562539791,76.99,9.7516,9.7421,40.0]
[1672562540004,76.99,9.7516,9.7423,307.0]
[1672562540212,76.99,9.7516,9.7421,40.0]
[1672562540213,76.99,9.7516,9.7425,347.0]
[1672562540429,75.95886972,9.7518,9.7428,40.0]
[1672562540642,75.95886972,9.7518,9.7431,40.0]
[1672562540850,75.95886972,9.7518,9.7433,307.0]
[1672562541066,75.95886972,9.7518,9.7435,307.0]
[1672562541286,75.95886972,9.7518,9.7438,40.0]
[1672562541599,75.95886972,9.7518,9.7441,40.0]
[1672562541813,75.95886972,9.7518,9.7444,40.0]
[1672562542022,75.95886972,9.7518,9.7446,307.0]
[1672562542215,75.95886972,9.7518,9.7449,40.0]
[1672562542431,75.95886972,9.7518,9.7452,40.0]
[1672562542752,75.95886972,9.7518,9.7454,307.0]
[1672562543599,75.95886972,9.7519,9.7454,307.0]
[1672562544017,75.95886972,9.7518,9.7455,40.0]
[1672562544229,22.6612,9.7521,9.7455,40.0]
[1672562544844,24.1833,9.7528,9.7455,40.0]
[1672562545067,20.0,9.7527,9.7455,40.0]
[1672562554939,20.0,9.7527,9.7457,307.0]
[1672562556115,20.0,9.7527,9.7452,40.0]
[1672562559792,20.0,9.7527,9.7454,307.0]
[1672562561377,20.0,9.7527,9.7455,40.0]
[1672562562945,20.0,9.7527,9.7457,347.0]
[1672562563262,20.0,9.7527,9.7459,307.0]
[1672562563459,20.0,9.7527,9.7462,40.0]
[1672562563793,20.0,9.7527,9.7465,40.0]
[1672562564301,20.0,9.7527,9.7467,307.0]
[1672562565672,20.0,9.7527,9.7469,307.0]
[1672562566719,20.0,9.7527,9.7465,40.0]
[1672562566931,20.0,9.7527,9.7467,307.0]
[1672562567473,20.0,9.7527,9.7468,40.0]
[1672562571152,20.0,9.7527,9.7462,40.0]
[1672562572605,20.0,9.7527,9.7464,307.0]
[1672562572928,20.0,9.7527,9.7462,40.0]
[1672562572929,20.0,9.7527,9.7467,40.0]
[1672562573120,20.0,9.7527,9.7469,307.0]
[1672562573329,20.0,9.7527,9.7472,40.0]
[1672562573551,20.0,9.7527,9.7475,40.0]
[1672562573763,20.0,9.7527,9.7478,40.0]
[1672562573976,20.0,9.7527,9.748,307.0]
[1672562574169,20.0,9.7527,9.7482,307.0]
[1672562574388,20.0,9.7527,9.7483,40.0]
[1672562586396,20.0,9.7527,9.7481,40.0]
[1672562589538,20.0,9.7527,9.7469,307.0]
[1672562589749,20.0,9.7527,9.7458,77.04]
[1672562589959,20.0,9.7527,9.7459,307.0]
[1672562590379,76.99,9.7526,9.7459,307.0]
[1672562590598,20.0,9.7525,9.7459,307.0]
[1672562590807,20.0,9.7525,9.7446,307.0]
[1672562591229,20.0,9.7526,9.7446,307.0]
[1672562593112,20.0,9.7526,9.7449,40.0]
[1672562593758,20.0,9.7527,9.7449,40.0]
[1672562594082,76.99,9.7526,9.7451,307.0]
[1672562594286,20.0,9.7525,9.7453,307.0]
[1672562594912,20.0,9.7527,9.7453,307.0]
[1672562595320,20.0,9.7527,9.7451,307.0]
[1672562596281,20.0,9.7527,9.745,77.05]
[1672562596282,20.0,9.7527,9.7453,307.0]
[1672562597313,20.0,9.7527,9.7451,307.0]
[1672562597544,20.0,9.7527,9.7453,307.0]
[1672562598605,20.0,9.7527,9.7451,307.0]
[1672562598814,20.0,9.7527,9.7453,307.0]
[1672562599779,20.0,9.7527,9.7449,347.0]
[1672562600281,20.0,9.7527,9.7452,40.0]
[1672562600487,20.0,9.7527,9.7454,307.0]
[1672562600715,20.0,9.7527,9.7453,77.04]
[1672562600931,76.99,9.7526,9.7443,307.0]
[1672562601144,20.0,9.7525,9.7379,77.1]
[1672562601338,76.02981027,9.752,9.7328,40.0]
[1672562601539,213.01981027,9.7519,9.7329,100.5516]
[1672562601748,408.73870776,9.7519,9.733,347.0]
[1672562601962,408.73870776,9.7519,9.7333,40.0]
[1672562601963,40.0,9.7517,9.7333,40.0]
[1672562602189,96.99,9.7516,9.7335,307.0]
[1672562602401,40.0,9.7515,9.7338,40.0]
[1672562602716,40.0,9.7513,9.7341,40.0]
[1672562602915,40.0,9.7511,9.7343,307.0]
[1672562603124,97.0,9.751,9.7345,307.0]
[1672562603341,40.0,9.7509,9.7347,307.0]
[1672562603540,40.0,9.7507,9.7349,307.0]
[1672562603751,97.0,9.7506,9.7351,307.0]
[1672562603959,40.0,9.7505,9.7353,307.0]
[1672562604165,40.0,9.7503,9.7355,307.0]
[1672562604390,97.01,9.7502,9.7357,307.0]
[1672562604603,40.0,9.7501,9.7359,307.0]
[1672562604814,40.0,9.7501,9.7341,40.0]
[1672562604815,40.0,9.7499,9.7361,307.0]
[1672562605006,40.0,9.7497,9.7363,307.0]
[1672562605218,116.02981027,9.747,9.7365,307.0]
[1672562605432,116.02981027,9.747,9.7341,40.0]
[1672562605433,97.03,9.7469,9.7367,307.0]
[1672562605654,312.62115935,9.7469,9.7369,307.0]
[1672562605866,40.0,9.7467,9.7371,307.0]
[1672562606072,40.0,9.7465,9.7371,307.0]
[1672562606275,97.04,9.7464,9.7371,307.0]
[1672562606481,166.71078301,9.7464,9.7371,307.0]
[1672562606811,40.0,9.7462,9.7343,307.0]
[1672562607010,97.04,9.7461,9.7346,40.0]
[1672562607216,97.04,9.7461,9.7348,307.0]
[1672562607440,97.04,9.7461,9.735,307.0]
[1672562607654,47.5794,9.746,9.7352,307.0]
[1672562607969,97.04,9.7459,9.7355,40.0]
[1672562608185,144.6194,9.7459,9.7357,307.0]
[1672562608398,144.6194,9.7459,9.7359,307.0]
[1672562608716,144.6194,9.7459,9.7361,307.0]
[1672562608919,24.3502,9.7458,9.7363,307.0]
[1672562609138,97.04,9.7457,9.7363,307.0]
[1672562609551,24.3502,9.7456,9.7363,307.0]
[1672562609754,77.04,9.7455,9.7363,307.0]
[1672562609965,20.0,9.7454,9.7357,307.0]
[1672562610181,77.04,9.7453,9.7359,307.0]
[1672562610401,20.0,9.7452,9.7359,307.0]
[1672562610594,77.05,9.7451,9.7359,307.0]
[1672562610810,20.0,9.745,9.7359,307.0]
[1672562611015,77.05,9.7449,9.7359,307.0]
[1672562611437,44.2527,9.7448,9.7359,307.0]
[1672562612168,24.2527,9.7447,9.7359,307.0]
[1672562612372,20.0,9.7446,9.7359,307.0]
[1672562612588,20.0,9.7446,9.736,40.0]
[1672562612788,24.2527,9.7445,9.7361,307.0]
[1672562613004,20.0,9.7444,9.7362,40.0]
[1672562620683,20.0,9.7444,9.7364,347.0]
[1672562623953,20.0,9.7444,9.7367,40.0]
[1672562625214,20.0,9.7444,9.7367,347.0]
[1672562626264,20.0,9.7444,9.7367,40.0]
[1672562627421,20.0,9.7444,9.7367,347.0]
[1672562628581,20.0,9.7444,9.7367,40.0]
[1672562630257,20.0,9.7444,9.7369,40.0]
[1672562630891,20.0,9.7444,9.7372,40.0]
[1672562631106,20.0,9.7444,9.7375,40.0]
[1672562631308,20.0,9.7444,9.7377,307.0]
[1672562631518,20.0,9.7444,9.7379,307.0]
[1672562631733,20.0,9.7444,9.7382,40.0]
[1672562631933,20.0,9.7444,9.7384,307.0]
[1672562632142,20.0,9.7444,9.7384,305.0]
[1672562632900,20.0,9.7444,9.7382,40.0]
[1672562635020,20.0,9.7444,9.7381,305.0]
[1672562635211,20.0,9.7444,9.7378,40.0]
[1672562636600,20.0,9.7444,9.738,305.0]
[1672562637858,20.0,9.7444,9.7275,615.4]
[1672562637859,20.0,9.7444,9.7369,305.0]
[1672562638261,20.0,9.7444,9.7371,305.0]
[1672562638486,20.0,9.7444,9.7373,305.0]
[1672562639542,20.0,9.7444,9.7369,305.0]
[1672562640694,20.0,9.7444,9.7362,345.0]
[1672562640902,20.0,9.7444,9.7366,305.0]
[1672562642885,20.0,9.7444,9.7368,305.0]
[1672562643933,20.0,9.7444,9.7363,77.12]
[1672562643934,20.0,9.7444,9.7369,305.0]
[1672562645198,20.0,9.7444,9.7364,305.0]
[1672562646265,20.0,9.7444,9.7362,40.0]
[1672562646476,20.0,9.7444,9.7364,305.0]
[1672562646781,20.0,9.7444,9.7365,40.0]
[1672562650261,20.0,9.7444,9.7362,345.0]
[1672562651307,20.0,9.7444,9.7364,305.0]
[1672562652249,20.0,9.7444,9.7365,40.0]
[1672562654778,20.0,9.7444,9.7364,305.0]
[1672562655092,20.0,9.7444,9.7362,40.0]
[1672562655283,77.05,9.7443,9.7362,40.0]
[1672562655493,20.0,9.7442,9.7362,40.0]
[1672562656125,101.9172,9.7444,9.7362,40.0]
[1672562656126,20.0,9.7443,9.7362,40.0]
[1672562656336,77.05,9.7442,9.7354,382.12]
[1672562656557,20.0,9.7441,9.7354,305.0]
[1672562656875,97.05,9.7443,9.7354,305.0]
[1672562657072,24.8672,9.744,9.7354,305.0]
[1672562657397,24.8672,9.744,9.7353,305.0]
[1672562657713,20.0,9.7439,9.7353,305.0]
[1672562658112,44.8672,9.7439,9.7353,305.0]
[1672562658857,77.06,9.7438,9.7356,77.12]
[1672562659069,20.0,9.7437,9.7354,305.0]
[1672562659279,44.8672,9.7439,9.7355,117.12]
[1672562659585,24.6573,9.7438,9.7355,117.12]
[1672562660032,20.0,9.7437,9.7357,40.0]
[1672562660964,20.0,9.7437,9.736,40.0]
[1672562661181,20.0,9.7437,9.7363,40.0]
[1672562661383,20.0,9.7437,9.7365,305.0]
[1672562661600,20.0,9.7437,9.7366,40.0]
[1672562662868,20.0,9.7437,9.7366,345.0]
[1672562663902,20.0,9.7437,9.7366,40.0]
[1672562668425,77.06,9.7436,9.7363,40.0]
[1672562668635,20.0,9.7435,9.7363,40.0]
[1672562669381,20.0,9.7436,9.7363,40.0]
[1672562674521,20.0,9.7437,9.7363,40.0]
[1672562678210,77.06,9.7436,9.7363,40.0]
[1672562678524,20.0,9.7435,9.7363,40.0]
[1672562678948,20.0,9.7437,9.7365,305.0]
[1672562679160,20.0,9.7437,9.7368,40.0]
[1672562679352,20.0,9.7437,9.737,305.0]
[1672562679564,20.0,9.7437,9.7373,40.0]
[1672562679774,20.0,9.7437,9.7375,305.0]
[1672562679978,20.0,9.7437,9.7378,40.0]
[1672562680192,20.0,9.7437,9.738,305.0]
[1672562680423,20.0,9.7437,9.7383,40.0]
[1672562680738,20.0,9.7437,9.7386,40.0]
[1672562680940,20.0,9.7437,9.7388,305.0]
[1672562681261,20.0,9.7437,9.7391,40.0]
[1672562682102,20.0,9.7437,9.7388,305.0]
[1672562682730,20.0,9.7437,9.7389,40.0]
[1672562691673,20.0,9.7437,9.7392,40.0]
[1672562691865,20.0,9.7437,9.7395,40.0]
[1672562692491,20.0,9.7447,9.7395,40.0]
[1672562697866,20.0,9.7447,9.7385,305.0]
[1672562698797,20.0,9.7447,9.7354,23.8272]
[1672562698798,97.05,9.7447,9.7365,307.0]
[1672562699134,24.7698,9.7446,9.7366,307.0]
[1672562699336,97.05,9.7445,9.7367,40.0]
[1672562700379,97.05,9.7445,9.7366,307.0]
[1672562702374,97.05,9.7445,9.736,307.0]
[1672562702584,97.05,9.7445,9.7359,77.12]
[1672562702585,97.05,9.7445,9.7357,77.12]
[1672562702799,40.0,9.7443,9.7354,23.8272]
[1672562703015,97.05,9.7442,9.7354,23.8272]
[1672562703235,40.0,9.7441,9.7354,23.8272]
[1672562703449,40.0,9.7439,9.7354,23.8272]
[1672562703758,97.06,9.7438,9.7354,23.8272]
[1672562703945,40.0,9.7437,9.7354,23.8272]
[1672562704157,40.0,9.7435,9.7354,23.8272]
[1672562704367,97.06,9.7434,9.7354,23.8272]
[1672562705006,40.0,9.7433,9.7354,23.8272]
[1672562705218,97.06,9.7432,9.7354,23.8272]
[1672562706268,40.0,9.7431,9.7354,23.8272]
[1672562706481,97.06,9.743,9.7354,23.8272]
[1672562707423,40.0,9.7429,9.7354,23.8272]
[1672562707635,97.06,9.7428,9.7354,23.8272]
[1672562707846,40.0,9.7427,9.7354,23.8272]
[1672562708047,40.0,9.7425,9.7354,23.8272]
[1672562708390,97.07,9.7424,9.7354,23.8272]
[1672562709313,20.0,9.7424,9.7354,23.8272]
[1672562709522,20.0,9.7432,9.7354,23.8272]
[1672562710157,77.06,9.7431,9.7354,23.8272]
[1672562710485,20.0,9.743,9.7354,23.8272]
[1672562710904,77.06,9.7432,9.7354,23.8272]
[1672562710905,20.0,9.7431,9.7354,23.8272]
[1672562711095,77.06,9.743,9.7354,23.8272]
[1672562711302,20.0,9.7429,9.7354,23.8272]
[1672562711939,20.0,9.7431,9.7354,23.8272]
[1672562712153,77.06,9.743,9.7354,23.8272]
[1672562712367,20.0,9.7429,9.7354,23.8272]
[1672562713005,20.0,9.7431,9.7354,23.8272]
[1672562713214,77.06,9.743,9.7354,23.8272]
[1672562713425,20.0,9.7429,9.7354,23.8272]
[1672562714036,20.0,9.7431,9.7354,23.8272]
[1672562714270,77.06,9.743,9.7354,23.8272]
[1672562714476,20.0,9.7429,9.7354,23.8272]
[1672562714880,20.0,9.7431,9.7354,23.8272]
[1672562715098,77.06,9.743,9.7354,23.8272]
[1672562715308,20.0,9.7429,9.7354,23.8272]
[1672562715956,77.06,9.7428,9.7354,23.8272]
[1672562716164,20.0,9.7427,9.7354,23.8272]
[1672562716367,20.0,9.7429,9.7354,23.8272]
[1672562716888,20.0,9.7431,9.7354,23.8272]
[1672562717099,77.06,9.743,9.7354,23.8272]
[1672562717303,20.0,9.7429,9.7354,23.8272]
[1672562717932,77.06,9.7432,9.7354,23.8272]
[1672562717933,20.0,9.7431,9.7354,23.8272]
[1672562718147,20.0,9.7432,9.7354,23.8272]
[1672562719729,20.0,9.7432,9.7355,40.0]
[1672562720791,77.06,9.7431,9.7355,40.0]
[1672562720984,20.0,9.743,9.7355,40.0]
[1672562721194,77.06,9.7429,9.7355,40.0]
[1672562721404,20.0,9.7428,9.7355,40.0]
[1672562721604,77.06,9.7427,9.7355,40.0]
[1672562721819,20.0,9.7426,9.7355,40.0]
[1672562722457,23.9589,9.7433,9.7355,40.0]
[1672562722458,77.07,9.7425,9.7355,40.0]
[1672562722674,20.0,9.7424,9.7354,23.8272]
[1672562722872,77.07,9.7423,9.7354,23.8272]
[1672562723083,20.0,9.7422,9.7354,23.8272]
[1672562723732,20.0,9.743,9.7354,23.8272]
[1672562723941,77.06,9.7429,9.7354,23.8272]
[1672562724255,20.0,9.7428,9.7354,23.8272]
[1672562724466,77.06,9.7427,9.7354,23.8272]
[1672562724657,20.0,9.7426,9.7354,23.8272]
[1672562724867,77.07,9.7425,9.7354,23.8272]
[1672562725075,20.0,9.7424,9.7354,23.8272]
[1672562725287,77.07,9.7423,9.7354,23.8272]
[1672562725514,20.0,9.7422,9.7354,23.8272]
[1672562725924,20.0,9.7429,9.7354,23.8272]
[1672562726257,77.06,9.7428,9.7354,23.8272]
[1672562726569,20.0,9.7427,9.7354,23.8272]
[1672562726770,77.07,9.7426,9.7354,23.8272]
[1672562726972,20.0,9.7425,9.7354,23.8272]
[1672562727183,77.07,9.7424,9.7354,23.8272]
[1672562727392,20.0,9.7423,9.7354,23.8272]
[1672562728030,20.0,9.7428,9.7354,23.8272]
[1672562728330,77.06,9.7427,9.7354,23.8272]
[1672562728547,20.0,9.7426,9.7354,23.8272]
[1672562728756,77.07,9.7425,9.7354,23.8272]
[1672562728970,20.0,9.7424,9.7354,23.8272]
[1672562729196,77.07,9.7423,9.7354,23.8272]
[1672562729406,20.0,9.7422,9.7354,23.8272]
[1672562730135,20.0,9.7428,9.7354,23.8272]
[1672562730350,77.06,9.7427,9.7354,23.8272]
[1672562730559,20.0,9.7426,9.7354,23.8272]
[1672562731300,20.0,9.7428,9.7354,23.8272]
[1672562731609,77.06,9.7427,9.7354,23.8272]
[1672562731824,20.0,9.7426,9.7354,23.8272]
[1672562732429,20.0,9.7428,9.7354,23.8272]
[1672562732655,77.06,9.7427,9.7354,23.8272]
[1672562732862,20.0,9.7426,9.7354,23.8272]
[1672562733503,20.0,9.7428,9.7354,23.8272]
[1672562733718,77.06,9.7427,9.7354,23.8272]
[1672562733908,20.0,9.7426,9.7354,23.8272]
[1672562734634,20.0,9.7428,9.7354,23.8272]
[1672562734848,77.06,9.7427,9.7354,23.8272]
[1672562735075,20.0,9.7426,9.7354,23.8272]
[1672562735694,20.0,9.7428,9.7354,23.8272]
[1672562735918,77.06,9.7427,9.7354,23.8272]
[1672562736123,20.0,9.7426,9.7354,23.8272]
[1672562736846,20.0,9.7428,9.7354,23.8272]
[1672562737062,77.06,9.7427,9.7354,23.8272]
[1672562737366,20.0,9.7426,9.7354,23.8272]
[1672562738017,20.0,9.7428,9.7354,23.8272]
[1672562738208,77.06,9.7427,9.7354,23.8272]
[1672562738417,20.0,9.7426,9.7354,23.8272]
[1672562739058,20.0,9.7428,9.7354,23.8272]
[1672562739267,77.06,9.7427,9.7354,23.8272]
[1672562739482,20.0,9.7426,9.7354,23.8272]
[1672562740016,20.0,9.7428,9.7355,40.0]
[1672562740225,20.0,9.7429,9.7358,40.0]
[1672562740423,20.0,9.7429,9.7361,40.0]
[1672562740629,20.0,9.7429,9.7363,307.0]
[1672562740840,20.0,9.7429,9.7365,307.0]
[1672562741065,20.0,9.7429,9.7368,40.0]
[1672562741260,20.0,9.7429,9.7371,40.0]
[1672562741470,20.0,9.7429,9.7373,307.0]
[1672562741785,20.0,9.7429,9.7372,77.11]
[1672562741786,20.0,9.7429,9.7376,40.0]
[1672562742011,20.0,9.7429,9.7378,307.0]
[1672562742224,20.0,9.7429,9.738,307.0]
[1672562742539,20.0,9.7429,9.7381,40.0]
[1672562742738,20.0,9.7429,9.7384,40.0]
[1672562759355,20.0,9.7429,9.7381,40.0]
[1672562759558,20.0,9.7429,9.7379,40.0]
[1672562763549,20.0,9.7429,9.7382,40.0]
[1672562767978,462.13889574,9.7683,9.7382,40.0]
[1672562768296,23.1708,9.7517,9.7385,40.0]
[1672562768490,24.4803,9.7529,9.7387,347.0]
[1672562768708,124.6311,9.7528,9.739,40.0]
[1672562769022,124.6311,9.7528,9.7393,40.0]
[1672562769023,46.2246,9.7527,9.7393,40.0]
[1672562769240,76.99,9.7526,9.7395,307.0]
[1672562769443,20.0,9.7525,9.7397,307.0]
[1672562769648,76.99,9.7524,9.7399,347.0]
[1672562769971,76.99,9.7524,9.7402,40.0]
[1672562769972,20.0,9.7523,9.7402,40.0]
[1672562770188,76.99,9.7522,9.7405,40.0]
[1672562770498,20.0,9.7521,9.7408,40.0]
[1672562770709,76.99,9.752,9.741,307.0]
[1672562770903,76.99,9.752,9.7413,40.0]
[1672562771105,76.99,9.752,9.7416,40.0]
[1672562771322,23.1371,9.7519,9.7418,307.0]
[1672562771529,76.99,9.7518,9.7421,40.0]
[1672562771755,76.99,9.7518,9.7424,40.0]
[1672562771973,24.3715,9.7517,9.7426,307.0]
[1672562772155,24.3715,9.7517,9.7425,77.07]
[1672562772156,24.3715,9.7517,9.7429,40.0]
[1672562772370,24.3715,9.7517,9.7431,307.0]
[1672562772592,24.3715,9.7516,9.7433,307.0]
[1672562772805,24.3715,9.7516,9.7436,40.0]
[1672562773032,24.3715,9.7516,9.7438,307.0]
[1672562773346,24.3715,9.7516,9.7439,40.0]
[1672562775324,24.3715,9.7516,9.7441,40.0]
[1672562779133,22.3715,9.7516,9.7441,347.0]
[1672562781856,22.3715,9.7516,9.7444,40.0]
[1672562787538,22.3715,9.7516,9.7439,307.0]
[1672562787739,77.0,9.7515,9.7439,307.0]
[1672562788462,77.0,9.7515,9.7428,40.0]
[1672562788676,77.0,9.7515,9.7434,307.0]
[1672562789004,77.0,9.7515,9.7436,307.0]
[1672562789946,77.0,9.7515,9.7431,307.0]
[1672562792267,77.0,9.7515,9.7431,40.0]
[1672562792460,22.3715,9.7516,9.7438,40.0]
[1672562792673,22.3715,9.7516,9.7438,347.0]
[1672562793633,22.3715,9.7516,9.744,307.0]
[1672562793821,22.3715,9.7516,9.7442,307.0]
[1672562794154,22.3715,9.7516,9.7443,40.0]
[1672562794363,22.3715,9.7516,9.7444,77.05]
[1672562794580,22.3715,9.7516,9.7446,40.0]
[1672562794767,22.3715,9.7516,9.7449,40.0]
[1672562794976,22.3715,9.7516,9.7451,307.0]
[1672562795197,22.3715,9.7516,9.7453,307.0]
[1672562795406,22.3715,9.7516,9.7455,307.0]
[1672562795617,22.3715,9.7516,9.7458,40.0]
[1672562795828,22.3715,9.7516,9.7461,40.0]
[1672562796030,22.3715,9.7516,9.7463,307.0]
[1672562796246,22.3715,9.7516,9.7466,40.0]
[1672562796561,22.3715,9.7516,9.7469,40.0]
[1672562796775,22.3715,9.7516,9.7472,40.0]
[1672562797516,20.0,9.7521,9.7472,40.0]
[1672562797725,20.0,9.7523,9.7472,40.0]